Workbook

Sheet DOC
A1: Direct Operating Costs
A2: 1. | B2: Input data from previous design phases
O3: Data from previous design phases | Q3: (under construction) | Y3: Nr. | Z3: DOC method
Y4: 1 | Z4: AEA 1989a
B5: Number of engines | C5: nE | D5: =REQUIREMENT_nE -> 2 | E5: [-] | I5: Airframe mass | J5: mAF | K5: =MASS_mOE-MASS_mPP -> 17603.22518 | L5: [kg] | O5: chosen engine type | Q5: Jet | Y5: 2 | Z5: AEA 1989b
O6: By-Pass Ratio, BPR | Q6: 5 | R6: [-] | Y6: 3 | Z6: AI 1989
B7: =IF(Preliminary_Sizing_chosen_engine_type="Jet","Take-off thrust of ONE engine","Take-off power of ONE engine") -> Take-off thrust of ONE engine | C7: TT/O,E | D7: =IF(Preliminary_Sizing_chosen_engine_type="Jet",JET_TTO_nE,"-") -> 53.18716405 | E7: [KN] | I7: Payload mass | J7: mPL | K7: =Preliminary_Sizing_mPL -> 6975 | L7: [kg] | O7: Number of engines, n_E | Q7: 2 | R7: [-] | Y7: 4 | Z7: ATA 1967
O8: Thrust one engine T_TO,E | Q8: 53.18716405 | R8: [kN] | Y8: 5 | Z8: Fokker 1993
B9: Max. Take-off mass | C9: mMTO | D9: =MASS_mMTO -> 33983.21736 | E9: [kg] | I9: Baggage mass | J9: mBaggage | K9: =FUSELAGE_mbaggage_total -> 750 | L9: [kg] | O9: Max. take-off mass, m_MTO | Q9: 33983.21736 | R9: [kg] | Y9: 6 | Z9: own
O10: Operating empty mass, m_OE | Q10: 20727.79765 | R10: [kg] | AA10: AEA 1989a | AB10: =LOOKUP(AA10,Z4:Z9,Y4:Y9) -> 1
B11: Operating empty mass | C11: mOE | D11: =MASS_mOE -> 20727.79765 | E11: [kg] | I11: Cargo mass | J11: mCargo | K11: =REQUIREMENT_mcargo -> 0 | L11: [kg] | O11: Number of passengers, n_PAX | Q11: 75 | R11: [-]
O12: Range, R | Q12: 2550000 | R12: [m]
B13: Number of passengers | C13: nPAX | D13: =REQUIREMENT_nPAX -> 75 | E13: [-] | I13: Passenger mass | J13: mPAX | K13: =DOC_mPL-DOC_mCargo-DOC_mBaggage -> 6225 | L13: [kg] | O13: Mass power plant, m_PP | Q13: 3124.572469 | R13: [kg] | Z13: AEA 1989a | AA13: AEA 1989b | AB13: AI 1989 | AC13: ATA 1967 | AD13: Fokker 1993 | AE13: own | AF13: Chosen
O14: Payload, m_PL | Q14: 6975 | R14: [kg] | Y14: nDEP | Z14: 14 | AA14: 16 | AB14: 15 | AC14: 12 | AD14: 15 | AE14: Eingabe | AF14: =CHOOSE(AB10,Z14,AA14,AB14,AC14,AD14,AE14) -> 14
B15: Design range | C15: R | D15: =REQUIREMENT_R/1000 -> 2550 | E15: [km] | I15: Fuel mass | J15: mF | K15: =Preliminary_Sizing_mF -> 5729.134041 | L15: [kg] | O15: Baggage mass, m_baggage | Q15: 750 | R15: [kg] | Y15: Presidual/Ptotal | Z15: 0.1 | AA15: 0.1 | AB15: 0.1 | AC15: 0 | AD15: 0.1 | AE15: Eingabe | AF15: =CHOOSE(AB10,Z15,AA15,AB15,AC15,AD15,AE15) -> 0.1
O16: Cargo mass, m_cargo | Q16: 0 | R16: [kg] | Y16: kS,AF | Z16: 0.1 | AA16: 0.1 | AB16: 0.06 | AC16: 0.1 | AD16: 0.08 | AE16: Eingabe | AF16: =CHOOSE(AB10,Z16,AA16,AB16,AC16,AD16,AE16) -> 0.1
B17: Engines mass | C17: mE,inst | D17: =MASS_mPP -> 3124.572469 | E17: [kg] | O17: Fuel mass, m_F | Q17: 5729.134041 | R17: [kg] | Y17: kS,E | Z17: 0.3 | AA17: 0.3 | AB17: 0.25 | AC17: 0.1 | AD17: 0.08 | AE17: Eingabe | AF17: =CHOOSE(AB10,Z17,AA17,AB17,AC17,AD17,AE17) -> 0.3
O18: Cruise speed, V_CR | Q18: 239.0063439 | R18: [m/s] | Y18: p | Z18: 0.08 | AA18: 0.08 | AF18: =CHOOSE(AB10,Z18,AA18) -> 0.08
Y19: q = 1 + p | Z19: 1.08 | AA19: 1.08 | AF19: =CHOOSE(AB10,Z19,AA19) -> 1.08
A20: 2. | B20: General Input for DOC method | Y20: nPAY | Z20: 14 | AA20: 16 | AF20: =CHOOSE(AB10,Z20,AA20) -> 14
Y21: kn/k0 | Z21: 0.1 | AA21: 0.1 | AF21: =CHOOSE(AB10,Z21,AA21) -> 0.1
B22: DOC Method | F22: =IF(AB10=1,"Short & Medium Range Aircraft","Long Rang Aircraft") -> Short & Medium Range Aircraft | Y22: nDEP | Z22: 14 | AA22: 16 | AF22: =CHOOSE(AB10,Z22,AA22) -> 14
Y23: pav | Z23: 0.0529 | AA23: 0.0534 | AF23: =CHOOSE(AB10,Z23,AA23) -> 0.0529
B24: Flight time | C24: tf | D24: 2.963659131 | E24: [h] | G24: <<<<< | I24: Suggestion : flight time | J24: tf | K24: =REQUIREMENT_R/Preliminary_Sizing_VCR/3600 -> 2.963659131 | L24: [h] | Y24: kINS | Z24: 0.005 | AA24: 0.005 | AF24: =CHOOSE(AB10,Z24,AA24) -> 0.005
Y25: kLD | Z25: 0.0078 | AA25: 0.0059 | AF25: =CHOOSE(AB10,Z25,AA25) -> 0.0078
B26: Fuel price | C26: PF | D26: 0.918 | E26: [US$/kg] | Y26: kNAV | Z26: 0.00414 | AA26: 0.00166 | AF26: =CHOOSE(AB10,Z26,AA26) -> 0.00414
Y27: kGND | Z27: 0.1 | AA27: 0.11 | AF27: =CHOOSE(AB10,Z27,AA27) -> 0.1
I28: Pdelivery suggestion with: | Y28: kU1 | Z28: 3750 | AA28: 4800 | AF28: =CHOOSE(AB10,Z28,AA28) -> 3750
I29: mMTO | J29: Pdelivery | K29: =IF(AB10=1,500*DOC_mMTO,350*DOC_mMTO)/10^6 -> 16.99160868 | L29: [M US$] | Y29: kU2 | Z29: 0.75 | AA29: 0.42 | AF29: =CHOOSE(AB10,Z29,AA29) -> 0.75
I30: mOE | J30: Pdelivery | K30: =860*DOC_mOE/10^6 -> 17.82590597 | L30: [M US$]
I31: nPAX | J31: Pdelivery | K31: =265000*DOC_nPAX/10^6 -> 19.875 | L31: [M US$]
I32: Average | J32: Pdelivery | K32: =(K29+K30+K31)/3 -> 18.23083822 | L32: [M US$]
B36: Delivery price | C36: Pdelivery | D36: 18.23083822 | E36: [M US$] | G36: Suggestion
I38: Price of one engine | J38: PE | K38: =293*(DOC_TT_O_E*1000)^0.81/10^6 -> 1.971383676 | L38: [M US$]
I40: Price of airframe | J40: PAF | K40: =DOC_Pdelivery-REQUIREMENT_nE*DOC_PE -> 14.28807087 | L40: [M US$]
B42: Contribution for engine spares | C42: kS,E | D42: =AF17 -> 0.3 | E42: [-]
B44: Contribution for airframe spares | C44: kS,AF | D44: =AF16 -> 0.1 | E44: [-] | I44: Price of spares | J44: PS | K44: =DOC_kS_AF*DOC_PAF+DOC_kS_E*REQUIREMENT_nE*DOC_PE -> 2.611637292 | L44: [M US$]
I46: Total price | J46: Ptotal | K46: =DOC_Pdelivery+DOC_PS -> 20.84247551 | L46: [M US$]
B48: Inflation parameter
B50: Date for calculation | C50: nyear | D50: 2010 | I50: Release date of AEA-Methode | J50: nmethod | K50: 1989
B52: Annual mean inflation rate | C52: pINF | D52: 0.033 | E52: [-] | I52: Compensation for inflation | J52: kINF | K52: =(1+DOC_pINF)^(DOC_nyear-DOC_nmethod) -> 1.97745565 | L52: [-]
A55: 3. | B55: Depreciation
B57: Residual Ratio | C57: Presidual/Ptotal | D57: =AF15 -> 0.1 | E57: [-]
B59: Useful service life | C59: nDEP | D59: =AF22 -> 14 | E59: [year] | I59: Depreciation cost | J59: CDEP | K59: =DOC_Ptotal*(1-DOC_Presidual_Ptotal)/DOC_nDEP -> 1.339873426 | L59: [M US$/year]
A61: 4. | B61: Interest Costs
B63: Average interest rate | C63: p | D63: =DOC_q-1 -> 0.08 | E63: [-] | I63: Number of years of payment | J63: nPAY | K63: =AF20 -> 14 | L63: [year]
C65: q = 1 + p | D65: =AF19 -> 1.08 | E65: [-] | I65: Relative residual value | J65: kn/k0 | K65: =AF21 -> 0.1 | L65: [-]
I67: Average interest rate | J67: pav | K67: =((DOC_q^DOC_nPAY-DOC_kn_k0)*(DOC_q-1)*DOC_nPAY/(DOC_q^DOC_nPAY-1)-(1-DOC_kn_k0))/DOC_nDEP -> 0.05288145326 | L67: [-]
I69: Interest cost | J69: CINT | K69: =DOC_Ptotal*DOC_pav -> 1.102180395 | L69: [M US$/year]
A71: 5. | B71: Insurance Costs
B73: Parameter for insurance costs | C73: kINS | D73: 0.005 | E73: [-] | I73: Insurance cost | J73: CINS | K73: =DOC_kINS*DOC_Pdelivery -> 0.09115419109 | L73: [M US$/year]
A75: 6. | B75: Fuel Costs
J77: kU1 | K77: =AF28 -> 3750 | L77: [-]
J79: kU2 | K79: =AF29 -> 0.75 | L79: [-]
I81: Number of flights per year | J81: nt,a | K81: =ROUND(DOC_kU1/(DOC_tf+DOC_kU2),0) -> 1010 | L81: [year-1]
I83: Fuel cost | J83: CF | K83: =DOC_nt_a*DOC_PF*DOC_mF/10^6 -> 5.3119385 | L83: [M US$/year]
A85: 7. | B85: Maintenance Costs
B87: Engine maintenance cost
B89: Bypass ratio | C89: BPR | D89: =IF(Preliminary_Sizing_chosen_engine_type="Jet",JET_BPR,"-") -> 5 | E89: [-] | J89: k1 | K89: =1.27-0.2*DOC_BPR^0.2 -> 0.9940540677 | L89: [-]
B91: Overall pressure ratio | C91: OAPR | D91: 28 | E91: [-] | J91: k2 | K91: =0.4*(DOC_OAPR/20)^1.3+0.4 -> 1.019478785 | L91: [-]
B93: Number of compressor stages | C93: nC | D93: 10 | E93: [-] | J93: k3 | K93: =0.032*DOC_nC+DOC_k4 -> 0.89 | L93: [-]
B95: Number of shafts | C95: nS | D95: 2 | E95: [-] | J95: k4 | K95: =IF(DOC_nS=1,0.5,IF(DOC_nS=2,0.57,0.64)) -> 0.57 | L95: [-]
I97: Mass of all engines (including nacelles) | J97: mE,inst | K97: =DOC_mE_inst -> 3124.572469 | L97: [kg]
I99: Engine maintenance man hours per flight hour | J99: tM,E,f | K99: =REQUIREMENT_nE*0.21*DOC_k1*DOC_k3*(1+1.02*10^-4*DOC_TT_O_E*1000)^0.4*(1+1.3/DOC_tf) -> 1.125007027 | L99: [-]
I101: Engine maintenance cost per flight hour | J101: CM,M,E,f | K101: =REQUIREMENT_nE*2.56*DOC_k1*(DOC_k2+DOC_k3)*(1+1.02*10^-4*DOC_TT_O_E*1000)^0.8*(1+1.3/DOC_tf)*DOC_kINF -> 122.4501142 | L101: [US$/h]
B104: Airframe maintenance cost
I105: Airframe maintenance cost per flight hour | J105: CM,M,AF,f | K105: =(4.2*10^-6+2.2*10^-6*DOC_tf)*DOC_PAF/DOC_tf*10^6 -> 51.68233882 | L105: [US$/h]
I107: Airframe maintenance man hours per flight hour | J107: tM,AF,f | K107: =(9*10^-5*DOC_mAF+6.7-350000/(DOC_mAF+75000))*(0.8+0.68*DOC_tf)/DOC_tf -> 4.279202362 | L107: [-]
B111: Results
B112: Labor rate | C112: LM | D112: 136.4444398 | E112: [US$/h] | G112: <<<<< | I112: Labor rate | J112: LM | K112: =69*DOC_kINF -> 136.4444398 | L112: [US$/h]
I114: Maintenance cost | J114: CM | K114: =(DOC_LM*(DOC_tM_AF_f+DOC_tM_E_f)+DOC_CM_M_E_f+DOC_CM_M_AF_f)*DOC_tf*DOC_nt_a/10^6 -> 2.728409333 | L114: [M US$/year]
A117: 8. | B117: Crew Costs
B119: Number of cabin crew members | C119: nCA | D119: 3 | E119: [-] | G119: <<<<< | I119: Number of cabin crew members | J119: nCA | K119: =ROUNDUP(DOC_nPAX/35,0) -> 3 | L119: [-]
B121: Number of cockpit crew members | C121: nCO | D121: 2 | E121: [-] | I121: Block time | J121: tb | K121: =IF(AB10=1,DOC_tf+0.25,DOC_tf+0.42) -> 3.213659131 | L121: [h]
B123: Cockpit crew hourly rate | C123: LCO | D123: =IF(AB10=1,246.5,355) -> 246.5 | E123: [US$/h] | I123: Cockpit crew cost | J123: CC,CO | K123: =DOC_nCO*DOC_LCO*DOC_tb*DOC_nt_a*10^-6 -> 1.600177291 | L123: [M US$/year]
B125: Cabin crew hourly rate | C125: LCA | D125: =IF(AB10=1,81,90) -> 81 | E125: [US$/h] | I125: Cabin crew cost | J125: CC,CA | K125: =DOC_LCA*DOC_nCA*DOC_tb*DOC_nt_a*10^-6 -> 0.7887283605 | L125: [M US$/year]
I127: Crew cost | J127: CC | K127: =(DOC_nCO*DOC_LCO+DOC_nCA*DOC_LCA)*DOC_tb*DOC_nt_a*10^-6 -> 2.388905652 | L127: [M US$/year]
A129: 9. | B129: Fees And Charges Costs
B131: Inflation rate for fees and charges | C131: pINF | D131: 0.033 | E131: [-] | I131: Parameter for inflation | J131: kINF | K131: =(1+D131)^(DOC_nyear-DOC_nmethod) -> 1.97745565 | L131: [-]
B133: Parameter for landing fees | C133: kLD | D133: =AF25 -> 0.0078 | E133: [US$/kg] | I133: Landing fees | J133: CFEE,LD | K133: =DOC_kLD*DOC_mMTO*DOC_nt_a*DOC_kINF2/10^6 -> 0.529404004 | L133: [M US$/year]
B135: Parameter for navigation charges | C135: kNAV | D135: =AF26 -> 0.00414 | E135: [US$/NM(kg)1/2] | I135: ATC or navigation charges | J135: CFEE, NAV | K135: =DOC_kNAV*REQUIREMENT_R/1000/1.852*SQRT(DOC_mMTO)*DOC_nt_a*DOC_kINF2*10^-6 -> 2.098746146 | L135: [M US$/year]
B137: Parameter for ground handling charges | C137: kGND | D137: =AF27 -> 0.1 | E137: [US$/kg] | I137: Ground handling charges | J137: CFEE,GND | K137: =DOC_kGND*DOC_nt_a*DOC_mPL*DOC_kINF2*10^-6 -> 1.393068069 | L137: [M US$/year]
I139: Fees and charges cost | J139: CFEE | K139: =DOC_CFEE_LD+DOC_CFEE_NAV+DOC_CFEE_GND -> 4.021218218 | L139: [M US$/year]
A141: 10. | B141: Direct Operating Costs Diagram
I143: Depreciation cost | J143: CDEP | K143: =DOC_cDEP -> 1.339873426
I144: Interest cost | J144: CINT | K144: =DOC_cINT -> 1.102180395
I145: Insurance cost | J145: CINS | K145: =DOC_cINS -> 0.09115419109
I146: Fuel cost | J146: CF | K146: =DOC_CF -> 5.3119385 | Z146: km
I147: Maintenance cost | J147: CM | K147: =DOC_cM -> 2.728409333 | Z147: Nm | AA147: Nm | AB147: =IF(DOC_unit_result=Z146,1,1.852) -> 1.852
I148: Crew cost | J148: CC | K148: =DOC_cC -> 2.388905652
Z149: Ca/c,m | AA149: =DOC_CDOC*10^6/(DOC_nt_a*REQUIREMENT_R/1000) -> 6.594323321 | AB149: [US$ /km]
I150: Direct Operating Costs | J150: CDOC | K150: =DOC_cDEP+DOC_cINT+DOC_cINS+DOC_CF+DOC_cM+DOC_cC+DOC_CFEE -> 16.98367971 | L150: [M US$/year]
Z151: Cs,m | AA151: =DOC_Ca_c_t/(REQUIREMENT_nPAX*REQUIREMENT_R/1000) -> 0.08792431095 | AB151: [US$ /km]
I152: Aircraft trip costs | J152: Ca/c,t | K152: =DOC_CDOC*10^6/(DOC_nt_a) -> 16815.52447 | L152: [US$/ flight]
Z153: Cpax,t,m | AA153: =DOC_Ca_c_t/((DOC_mPAX+DOC_mBaggage)*REQUIREMENT_R/1000)*1000 -> 0.9454226984 | AB153: [US$ /t /km]
I154: Unit
Z155: Ccargo,t,m | AA155: =IF(DOC_mCargo>0,DOC_Ca_c_t*1000/(DOC_mCargo*REQUIREMENT_R/1000),"-") -> - | AB155: [US$ /t /km]
I156: Aircraft mile costs | J156: Ca/c,m | K156: =DOC_Ca_c_m*AB147 -> 12.21268679 | L156: ="[US$ /" & DOC_unit_result & "]" -> [US$ /Nm]
Z157: Ct,m | AA157: =DOC_Ca_c_t*1000/(DOC_mPL*REQUIREMENT_R/1000) -> 0.9454226984 | AB157: [US$ /t /km]
I158: Seat-mile costs | J158: Cs,m | K158: =DOC_Cs_m*AB147 -> 0.1628358239 | L158: ="[US$ /" & DOC_unit_result & "]" -> [US$ /Nm]
I160: Seat-ton-mile costs | J160: Cpax,t,m | K160: =DOC_Cpax_t_m*AB147 -> 1.750922837 | L160: ="[US$ /t /" & DOC_unit_result & "]" -> [US$ /t /Nm]
I162: Cargo-ton-mile costs | J162: Ccargo,t,m | K162: =IF(DOC_mCargo>0,DOC_Ccargo_t_m*AB147,"-") -> - | L162: ="[US$ /t /" & DOC_unit_result & "]" -> [US$ /t /Nm]
I164: Ton-mile costs | J164: Ct,m | K164: =DOC_Ct_m*AB147 -> 1.750922837 | L164: ="[US$ /t /" & DOC_unit_result & "]" -> [US$ /t /Nm]
B166: Equivalent ton-mile costs
AD167: Airbus 1989 | AE167: Lufthansa 1982 | AF167: Choice
B168: Method | I168: Correction factor for containers | J168: kcargo,CLD | K168: =AF168 -> 0.8 | L168: [-] | Z168: Airbus 1989 | AC168: kcargo,CLD | AD168: =0.005*(DOC_mPAX+DOC_mBaggage)/DOC_nPAX -> 0.465 | AE168: 0.8 | AF168: =IF(DOC_equivalent_TMC_method_result=Z168,AD168,AE168) -> 0.8
Z169: Lufthansa 1982 | AA169: Lufthansa 1982
I170: Correction factor for bulk | J170: kcargo,B | K170: =AF170 -> 0.5 | L170: [-] | AC170: kcargo,B | AD170: =0.0025*(DOC_mPAX+DOC_mBaggage)/DOC_nPAX -> 0.2325 | AE170: 0.5 | AF170: =IF(DOC_equivalent_TMC_method_result=Z168,AD170,AE170) -> 0.5
B172: Cargo accomated in containers on lower deck | C172: mcargo,CLD/mcargo | D172: 50 | E172: [%] | I172: Cargo accomated in containers on lower deck | J172: mcargo,CLD | K172: =DOC_mCargo*DOC_mcargo_CLD_mcargo/100 -> 0 | L172: [kg]
I174: Bulk cargo | J174: mcargo,B | K174: =DOC_mCargo*(1-DOC_mcargo_CLD_mcargo/100) -> 0 | L174: [kg]
I176: Equivalent ton-mile costs | J176: Cequiv,t,m | K176: =DOC_Cequiv_t_m*AB147 -> 1.750922837 | L176: ="[US$ /t /" & DOC_unit_result & "]" -> [US$ /t /Nm] | Z176: Cequiv,t,m | AA176: =DOC_Ca_c_t/((DOC_mPAX+DOC_mBaggage+DOC_mcargo_CLD*DOC_kcargo_CLD+DOC_mcargo_B*DOC_kcargo_B)*REQUIREMENT_R/1000)*1000 -> 0.9454226984 | AB176: [US$/t km]
